fUSD/lending_fUSD_20250705
["ID","MTS","AMOUNT","RATE_DAILY","PERIOD"]
[369881561,1751758237947,-460.0,0.00019984,2]
[369881563,1751758237958,-460.0,0.00019984,2]
[369881566,1751758237969,-460.0,0.00019984,2]
[369881568,1751758237981,-460.0,0.00019984,2]
[369881572,1751758237992,-460.0,0.00019984,2]
[369881574,1751758238002,-460.0,0.00019984,2]
[369881576,1751758238014,-479.29,0.00019984,2]
[369881578,1751758238023,-520.53231203,0.00019984,2]
[369881581,1751758238034,-199.03995385,0.00019984,2]
[369881583,1751758238043,-460.0,0.00019984,2]
[369881585,1751758238053,-460.0,0.00019984,2]
[369881587,1751758238063,-494.60540015,0.00019984,2]
[369881589,1751758238073,-460.0,0.00019984,2]
[369881591,1751758238084,-460.0,0.00019984,2]
[369881593,1751758238096,-460.0,0.00019984,2]
[369881596,1751758238108,-546.84796798,0.00019984,2]
[369881598,1751758238120,-460.0,0.00019984,2]
[369881600,1751758238129,-460.0,0.00019984,2]
[369881602,1751758238139,-460.0,0.00019984,2]
[369881604,1751758238149,-460.0,0.00019984,2]
[369881606,1751758238159,-460.0,0.00019984,2]
[369881608,1751758238169,-460.0,0.00019984,2]
[369881610,1751758238182,-460.0,0.00019984,2]
[369881612,1751758238192,-460.0,0.00019984,2]
[369881615,1751758238203,-460.0,0.00019984,2]
[369881617,1751758238214,-460.0,0.00019984,2]
[369881619,1751758238227,-460.0,0.00019984,2]
[369881621,1751758238238,-520.0,0.00019984,2]
[369881623,1751758238250,-460.0,0.00019984,2]
[369881625,1751758238261,-286.04897929,0.00019984,2]
[369881627,1751758238271,-460.0,0.00019984,2]
[369881629,1751758238282,-460.0,0.00019984,2]
[369881632,1751758238292,-460.0,0.00019984,2]
[369881634,1751758238302,-460.0,0.00019984,2]
[369881636,1751758238312,-485.85,0.00019984,2]
[369881638,1751758238322,-460.0,0.00019984,2]
[369881640,1751758238333,-460.0,0.00019984,2]
[369881642,1751758238344,-460.0,0.00019984,2]
[369881644,1751758238354,-460.0,0.00019984,2]
[369881646,1751758238364,-460.0,0.00019984,2]
[369881648,1751758238374,-460.0,0.00019984,2]
[369881650,1751758238384,-460.0,0.00019984,2]
[369881653,1751758238395,-532.96,0.00019984,2]
[369881655,1751758238405,-552.62920444,0.00019984,2]
[369881657,1751758238416,-460.0,0.00019984,2]
[369881659,1751758238426,-460.0,0.00019984,2]
[369881661,1751758238437,-460.0,0.00019984,2]
[369881663,1751758238447,-460.0,0.00019984,2]
[369881665,1751758238457,-460.0,0.00019984,2]
[369881667,1751758238467,-460.0,0.00019984,2]
[369881669,1751758238478,-490.0,0.00019984,2]
[369881671,1751758238489,-460.0,0.00019984,2]
[369881675,1751758238499,-460.0,0.00019984,2]
[369881678,1751758238509,-460.0,0.00019984,2]
[369881681,1751758238519,-460.0,0.00019984,2]
[369881684,1751758238530,-460.0,0.00019984,2]
[369881687,1751758238540,-460.0,0.00019984,2]
[369881690,1751758238550,-460.0,0.00019984,2]
[369881693,1751758238560,-460.0,0.00019984,2]
[369881696,1751758238571,-490.0,0.00019984,2]
[369881699,1751758238581,-473.85,0.00019984,2]
[369881702,1751758238591,-490.0,0.00019984,2]
[369881705,1751758238602,-460.0,0.00019984,2]
[369881708,1751758238612,-460.0,0.00019984,2]
[369881711,1751758238625,-460.0,0.00019984,2]
[369881713,1751758238636,-460.0,0.00019984,2]
[369881715,1751758238647,-460.0,0.00019984,2]
[369881717,1751758238657,-523.83,0.00019984,2]
[369881719,1751758238668,-460.0,0.00019984,2]
[369881721,1751758238678,-460.0,0.00019984,2]
[369881724,1751758238689,-486.09,0.00019984,2]
[369881726,1751758238699,-460.0,0.00019984,2]
[369881729,1751758238709,-460.0,0.00019984,2]
[369881731,1751758238719,-460.0,0.00019984,2]
[369881733,1751758238730,-523.88,0.00019984,2]
[369881735,1751758238741,-309.08145058,0.00019984,2]
[369881737,1751758238751,-460.0,0.00019984,2]
[369881739,1751758238761,-460.0,0.00019984,2]
[369881741,1751758238771,-490.0,0.00019984,2]
[369881744,1751758238781,-460.0,0.00019984,2]
[369881746,1751758238792,-460.0,0.00019984,2]
[369881747,1751758238802,-490.0,0.00019984,2]
[369881749,1751758238812,-460.0,0.00019984,2]
[369881751,1751758238822,-460.0,0.00019984,2]
[369881753,1751758238832,-460.0,0.00019984,2]
[369881755,1751758238843,-490.0,0.00019984,2]
[369881756,1751758238852,-490.0,0.00019984,2]
[369881758,1751758238863,-460.0,0.00019984,2]
[369881760,1751758238873,-460.0,0.00019984,2]
[369881762,1751758238884,-315.37983993,0.00019984,2]
[369881764,1751758238894,-460.0,0.00019984,2]
[369881766,1751758238904,-460.0,0.00019984,2]
[369881768,1751758238915,-248.73323565,0.00019984,2]
[369881770,1751758238926,-490.0,0.00019984,2]
[369881771,1751758238935,-490.0,0.00019984,2]
[369881773,1751758238945,-460.0,0.00019984,2]
[369881775,1751758238956,-513.51970122,0.00019984,2]
[369881777,1751758238966,-460.0,0.00019984,2]
[369881779,1751758238976,-460.0,0.00019984,2]
[369881781,1751758238986,-460.0,0.00019984,2]
[369881782,1751758238996,-460.0,0.00019984,2]
[369881784,1751758239007,-460.0,0.00019984,2]
[369881786,1751758239017,-460.0,0.00019984,2]
[369881788,1751758239026,-460.0,0.00019984,2]
[369881790,1751758239037,-490.0,0.00019984,2]
[369881792,1751758239047,-492.74903814,0.00019984,2]
[369881794,1751758239056,-460.0,0.00019984,2]
[369881796,1751758239067,-460.0,0.00019984,2]
[369881798,1751758239077,-490.0,0.00019984,2]
[369881799,1751758239087,-460.0,0.00019984,2]
[369881801,1751758239097,-460.0,0.00019984,2]
[369881803,1751758239108,-460.0,0.00019984,2]
[369881805,1751758239118,-460.0,0.00019984,2]
[369881807,1751758239129,-490.0,0.00019984,2]
[369881809,1751758239140,-490.0,0.00019984,2]
[369881811,1751758239150,-460.0,0.00019984,2]
[369881813,1751758239160,-505.92,0.00019984,2]
[369881815,1751758239170,-460.0,0.00019984,2]
[369881817,1751758239180,-460.0,0.00019984,2]
[369881818,1751758239191,-460.0,0.00019984,2]
[369881820,1751758239201,-544.15,0.00019984,2]
[369881822,1751758239212,-460.0,0.00019984,2]
[369881824,1751758239223,-460.0,0.00019984,2]
[369881826,1751758239233,-460.0,0.00019984,2]
[369881828,1751758239244,-300.0,0.00019984,2]
[369881830,1751758239254,-490.0,0.00019984,2]
[369881831,1751758239264,-460.0,0.00019984,2]
[369881833,1751758239274,-460.0,0.00019984,2]
[369881835,1751758239284,-460.0,0.00019984,2]
[369881837,1751758239295,-460.0,0.00019984,2]
[369881839,1751758239305,-460.0,0.00019984,2]
[369881841,1751758239314,-460.0,0.00019984,2]
[369881843,1751758239324,-490.0,0.00019984,2]
[369881845,1751758239335,-460.0,0.00019984,2]
[369881847,1751758239344,-490.0,0.00019984,2]
[369881848,1751758239354,-460.0,0.00019984,2]
[369881850,1751758239364,-460.0,0.00019984,2]
[369881852,1751758239374,-460.0,0.00019984,2]
[369881854,1751758239385,-490.0,0.00019984,2]
[369881856,1751758239395,-490.0,0.00019984,2]
[369881858,1751758239406,-460.0,0.00019984,2]
[369881860,1751758239416,-460.0,0.00019984,2]
[369881862,1751758239426,-460.0,0.00019984,2]
[369881864,1751758239436,-460.0,0.00019984,2]
[369881865,1751758239447,-460.0,0.00019984,2]
[369881867,1751758239457,-460.0,0.00019984,2]
[369881869,1751758239467,-460.0,0.00019984,2]
[369881871,1751758239477,-460.0,0.00019984,2]
[369881873,1751758239487,-404.59994722,0.00019984,2]
[369881875,1751758239498,-460.0,0.00019984,2]
[369881877,1751758239508,-490.740547,0.00019984,2]
[369881879,1751758239518,-460.0,0.00019984,2]
[369881881,1751758239528,-213.71482629,0.00019984,2]
[369881883,1751758239538,-460.0,0.00019984,2]
[369881884,1751758239547,-490.0,0.00019984,2]
[369881886,1751758239557,-548.93,0.00019984,2]
[369881888,1751758239567,-490.0,0.00019984,2]
[369881890,1751758239577,-460.0,0.00019984,2]
[369881892,1751758239586,-410.75221586,0.00019984,2]
[369881894,1751758239596,-460.0,0.00019984,2]
[369881896,1751758239606,-460.0,0.00019984,2]
[369881898,1751758239617,-460.0,0.00019984,2]
[369881900,1751758239628,-460.0,0.00019984,2]
[369881901,1751758239637,-460.0,0.00019984,2]
[369881903,1751758239647,-460.0,0.00019984,2]
[369881905,1751758239657,-460.0,0.00019984,2]
[369881907,1751758239668,-460.0,0.00019984,2]
[369881909,1751758239677,-460.0,0.00019984,2]
[369881911,1751758239687,-460.0,0.00019984,2]
[369881913,1751758239697,-460.0,0.00019984,2]
[369881915,1751758239707,-153.89276761,0.00019984,2]
[369881917,1751758239717,-300.0,0.00019984,2]
[369881919,1751758239727,-300.0,0.00019984,2]
[369881921,1751758239737,-162.5,0.00019985,2]
[369881922,1751758239747,-73166.25178551,0.00019985,2]
[369881924,1751758239757,-300.0,0.00019985,2]
[369881926,1751758239767,-300.0,0.00019985,2]
[369881928,1751758239776,-300.0,0.00019999,2]
[369881930,1751758239787,-300.0,0.00019999,2]
[369881932,1751758239796,-300.0,0.00019999,2]
[369881934,1751758239806,-636.75368455,0.00019999,2]
[369881936,1751758239816,-180.33368803,0.00019999,2]
[369881938,1751758239826,-616.0290879,0.00019999,2]
[369881940,1751758239836,-616.0290879,0.00019999,2]
[369881941,1751758239846,-616.0290879,0.00019999,2]
[369881943,1751758239856,-616.0290879,0.00019999,2]
[369881945,1751758239866,-616.0290879,0.00019999,2]
[369881947,1751758239876,-616.0290879,0.00019999,2]
[369881949,1751758239886,-616.0290879,0.00019999,2]
[369881951,1751758239896,-616.0290879,0.00019999,2]
[369881954,1751758239909,-616.0290879,0.00019999,2]
[369881956,1751758239919,-616.0290879,0.00019999,2]
[369881958,1751758239930,-616.0290879,0.00019999,2]
[369881960,1751758239940,-616.0290879,0.00019999,2]
[369881962,1751758239950,-616.0290879,0.00019999,2]
[369881963,1751758239960,-616.0290879,0.00019999,2]
[369881965,1751758239971,-616.0290879,0.00019999,2]
[369881967,1751758239981,-616.0290879,0.00019999,2]
[369881970,1751758239991,-616.0290879,0.00019999,2]
[369882007,1751758240304,-655.23093895,0.00019999,2]
[369882009,1751758240316,-655.23093895,0.00019999,2]
[369882011,1751758240325,-655.23093895,0.00019999,2]
[369882013,1751758240335,-655.23093895,0.00019999,2]
[369882015,1751758240344,-655.23093895,0.00019999,2]
[369882017,1751758240353,-655.23093895,0.00019999,2]
[369882019,1751758240363,-808.11815804,0.00019999,2]
[369882020,1751758240372,-808.11815804,0.00019999,2]
[369882022,1751758240382,-808.11815804,0.00019999,2]
[369882024,1751758240391,-16294.55460651,0.0002,2]
[369882026,1751758240401,-175019.46366416,0.0002,2]
[369882042,1751758240600,-652.7229703,0.0002,2]
[369882043,1751758240618,-58861.13623815,0.0002,2]
[369882044,1751758240629,-43010.79713,0.0002,2]
[369882045,1751758240639,-289.99060142,0.0002,2]
[369882061,1751758240936,-494.61438906,0.00019964,2]
[369882063,1751758240945,-460.0,0.00019964,2]
[369882065,1751758240955,-460.0,0.00019964,2]
[369882067,1751758240964,-460.0,0.00019965,2]
[369882069,1751758240973,-525.53,0.00019984,2]
[369882071,1751758240982,-460.0,0.00019984,2]
[369882073,1751758240992,-500.0,0.00019999,2]
[369882075,1751758241002,-499.57355239,0.00019999,2]
[369882077,1751758241011,-1872.46633874,0.0002,2]
[369882079,1751758241023,-311.184893,0.0002,2]
[369882084,1751758241062,-1075.0,0.00019774,2]
[369882086,1751758241071,-583.55210235,0.00019964,2]
[369882088,1751758241081,-460.0,0.00019964,2]
[369882090,1751758241090,-486.66,0.00019964,2]
[369882092,1751758241100,-460.0,0.00019965,2]
[369882094,1751758241109,-1141.91216308,0.0002,2]
[369882097,1751758241124,-10635.61444683,0.0002,2]
[369882099,1751758241135,-521.85,0.0002,2]
[369882102,1751758241155,-2224.31390383,0.0002,2]
[369882114,1751758241260,-460.0,0.00019964,2]
[369882116,1751758241269,-4764.53072394,0.0002,2]
[369882118,1751758241281,-2219.7175003,0.0002,2]
[369882329,1751758243445,-3343.0,0.0001826,2]
[369882331,1751758243455,-460.0,0.00019964,2]
[369882333,1751758243466,-177.35707077,0.00019965,2]
[369882335,1751758243476,-460.0,0.00019984,2]
[369882337,1751758243487,-1052.64292923,0.0002,2]
[369882344,1751758243539,-447.09240001,0.0002,2]
[369882555,1751758246016,-460.0,0.00019964,2]
[369882557,1751758246026,-838.67190966,0.0002,2]
[369882559,1751758246037,-2890.47036556,0.0002,2]
[369882561,1751758246047,-6050.74050884,0.0002,2]
[369882563,1751758246059,-2884.13548166,0.0002,2]
[369882572,1751758246130,-2498.32464132,0.0002,2]
[369882593,1751758246330,-460.0,0.00019964,2]
[369882595,1751758246339,-9563.87454,0.0002,2]
[369882597,1751758246350,-250179.55808298,0.0002,2]
[369882599,1751758246362,-447.51683605,0.0002,2]
[369882601,1751758246372,-417.74591911,0.0002,2]
[369882610,1751758246458,-1520.76065363,0.0002,2]
[369882611,1751758246469,-532.84310986,0.0002,2]
[369882628,1751758860327,476.7,0.00013699,2]
[369882635,1751759432325,-250.0,0.00015,2]
[369882636,1751759432335,-352.0,0.00016168,2]
[369882637,1751759432430,-156.0,0.00016168,2]
[369882638,1751759432439,-508.0,0.00018255,4]
[369882639,1751759432449,-166.8,0.00018303,2]
[369882640,1751759432459,-200.0,0.00018304,2]
[369882641,1751759432470,-4208.78,0.00018308,2]
[369882642,1751759432479,-250.0,0.00018314,2]
[369882643,1751759432489,-210.26992061,0.00018355,2]
[369882644,1751759432499,-700.0,0.0001836,2]
[369882645,1751759432509,-1031.20415941,0.0001836,2]
[369882646,1751759432521,-168.79584059,0.0001836,2]
[369882647,1751759432531,-3343.0,0.00018361,2]
[369882648,1751759432540,-804.0,0.00018361,2]
[369882649,1751759432550,-339.646,0.00018361,2]
[369882650,1751759432559,-4109.0,0.00018361,2]
[369882651,1751759432569,-887.0,0.00018361,2]
[369882652,1751759432578,-181.59,0.0001842,2]
[369882653,1751759432588,-356.6,0.00018425,2]
[369882654,1751759432597,-1602.78,0.00018429,2]
[369882655,1751759432607,-200.0,0.00018439,7]
[369882656,1751759432616,-300.0,0.00018441,2]
[369882657,1751759432626,-207.4,0.00018441,2]
[369882658,1751759432637,-1000.0,0.00018452,2]
[369882659,1751759432648,-23900.0,0.00018452,2]
[369882660,1751759432657,-666.0,0.00018454,2]
[369882661,1751759432666,-800.12,0.00018841,2]
[369882662,1751759432675,-150.0,0.00018888,2]
[369882663,1751759432686,-150.0,0.00018888,2]
[369882664,1751759432695,-220.16172352,0.00018888,2]
[369882665,1751759432704,-150.0,0.00018888,2]
[369882666,1751759432714,-150.0,0.00018888,2]
[369882667,1751759432724,-150.0,0.00018888,2]
[369882668,1751759432733,-150.0,0.00018888,2]
[369882669,1751759432742,-4065.70901207,0.000189,2]
[369882671,1751759432752,-167.3,0.00018946,2]
[369882673,1751759432762,-603.98,0.00018991,2]
[369882675,1751759432771,-603.98,0.00019001,2]
[369882676,1751759432780,-603.98,0.00019011,2]
[369882678,1751759432789,-603.98,0.00019021,2]
[369882680,1751759432798,-603.98,0.00019031,2]
[369882682,1751759432807,-603.98,0.00019041,2]
[369882684,1751759432816,-603.98,0.00019051,2]
[369882686,1751759432825,-603.98,0.00019061,2]
[369882688,1751759432835,-603.98,0.00019071,2]
[369882690,1751759432844,-603.98,0.00019081,2]
[369882692,1751759432853,-184.08851331,0.00019091,2]
[369882695,1751759432868,-419.89148669,0.00019091,2]
[369882697,1751759432878,-21.35292491,0.00019101,2]
[369882700,1751759432894,-582.62707509,0.00019101,2]
[369882701,1751759432904,-603.98,0.00019111,2]
[369882703,1751759432913,-603.98,0.00019121,2]
[369882705,1751759432923,-603.98,0.00019131,2]
[369882707,1751759432932,-603.98,0.00019141,2]
[369882709,1751759432941,-603.98,0.00019151,2]
[369882711,1751759432950,-603.98,0.00019161,2]
[369882713,1751759432960,-603.98,0.00019171,2]
[369882715,1751759432969,-151.0,0.00019178,2]
[369882717,1751759432978,-169.92,0.00019178,2]
[369882719,1751759432987,-603.98,0.00019181,2]
[369882720,1751759432996,-168.0,0.0001941,2]
[369882723,1751759433006,-168.0,0.00019412,2]
[369882724,1751759433016,-168.0,0.00019423,2]
[369882726,1751759433026,-168.0,0.00019442,2]
[369882728,1751759433035,-168.0,0.00019483,2]
[369882730,1751759433045,-1468.18212793,0.000195,2]
[369882733,1751759433057,-531.81787207,0.000195,2]
[369882735,1751759433066,-737.85990569,0.00019555,2]
[369882853,1751759438362,-558.37536538,0.00019555,2]
[369882854,1751759438373,-558.37536538,0.00019555,2]
[369882855,1751759438383,-243.79293696,0.00019555,2]
[369882856,1751759438617,-3084.05616934,0.00019555,2]
[369882857,1751759438629,-558.37536538,0.00019599,2]
[369882858,1751759438644,-375.248904,0.00019599,2]
[369882859,1751759438655,-150.0,0.00019686,2]
[369882860,1751759438665,-1000.0,0.000197,2]
[369882861,1751759438675,-156.587,0.00019726,2]
[369882862,1751759438686,-1107.0,0.00019774,2]
[369882863,1751759438697,-653.0,0.00019774,2]
[369882864,1751759438706,-500.0,0.00019774,2]
[369882865,1751759438718,-1030.0,0.00019774,2]
[369882866,1751759438729,-706.0,0.00019774,2]
[369882867,1751759438740,-168.0,0.00019791,2]
[369882868,1751759438751,-627.848,0.000198,2]
[369882869,1751759438761,-311.1,0.0001981,2]
[369882870,1751759438770,-215.0738,0.0001981,2]
[369882872,1751759438780,-6761.84023917,0.0001981,2]
[369882874,1751759438789,-200.0,0.00019826,2]
[369882876,1751759438798,-168.0,0.00019843,2]
[369882877,1751759438807,-1000.0,0.00019845,2]
[369882879,1751759438817,-2845.82067448,0.00019864,2]
[369882882,1751759438836,-384.26787706,0.00019864,2]
[369883066,1751759440678,-407.68877434,0.00019864,2]
[369883068,1751759440690,-589.24429083,0.00019899,2]
[369883070,1751759440699,-176.89894398,0.000199,2]
[369883072,1751759440709,-5000.0,0.000199,2]
[369883074,1751759440719,-159.94802385,0.000199,2]
[369883076,1751759440730,-153.29799438,0.000199,2]
[369883078,1751759440739,-675.01544832,0.000199,2]
[369883080,1751759440748,-269.8242305,0.000199,2]
[369883082,1751759440758,-460.0,0.00019964,2]
[369883084,1751759440767,-460.0,0.00019964,2]
[369883086,1751759440776,-176.36,0.00019964,2]
[369883088,1751759440785,-229.16,0.00019964,2]
[369883089,1751759440795,-520.0,0.00019964,2]
[369883092,1751759440806,-460.0,0.00019964,2]
[369883094,1751759440818,-460.0,0.00019964,2]
[369883095,1751759440828,-460.0,0.00019964,2]
[369883097,1751759440838,-575.61,0.00019964,2]
[369883099,1751759440848,-157.22,0.00019964,2]
[369883101,1751759440859,-362.87,0.00019964,2]
[369883103,1751759440868,-458.06,0.00019964,2]
[369883105,1751759440877,-415.19753102,0.00019964,2]
[369883107,1751759440886,-460.0,0.00019964,2]
[369883109,1751759440895,-460.0,0.00019964,2]
[369883111,1751759440905,-224.53,0.00019964,2]
[369883113,1751759440915,-460.0,0.00019964,2]
[369883115,1751759440924,-443.54,0.00019964,2]
[369883117,1751759440933,-447.11,0.00019964,2]
[369883119,1751759440943,-500.0,0.00019964,2]
[369883121,1751759440952,-500.0,0.00019964,2]
[369883123,1751759440961,-260.65,0.00019964,2]
[369883125,1751759440970,-460.0,0.00019964,2]
[369883127,1751759440980,-500.0,0.00019964,2]
[369883129,1751759440989,-460.0,0.00019964,2]
[369883131,1751759440999,-500.0,0.00019964,2]
[369883133,1751759441008,-460.0,0.00019964,2]
[369883135,1751759441018,-460.0,0.00019964,2]
[369883136,1751759441027,-460.0,0.00019964,2]
[369883138,1751759441037,-233.74,0.00019964,2]
[369883140,1751759441047,-199.18,0.00019964,2]
[369883142,1751759441056,-460.0,0.00019964,2]
[369883144,1751759441065,-544.61,0.00019964,2]
[369883146,1751759441075,-291.79,0.00019964,2]
[369883148,1751759441085,-414.73,0.00019964,2]
[369883150,1751759441095,-291.75,0.00019964,2]
[369883152,1751759441104,-456.71,0.00019964,2]
[369883154,1751759441114,-41.5657366,0.00019964,2]
[369883157,1751759441130,-130.5242634,0.00019964,2]
[369883159,1751759441139,-460.0,0.00019964,2]
[369883161,1751759441149,-460.0,0.00019964,2]
[369883163,1751759441158,-562.76412277,0.00019964,2]
[369883165,1751759441168,-292.48,0.00019964,2]
[369883167,1751759441177,-155.29,0.00019964,2]
[369883169,1751759441187,-460.0,0.00019964,2]
[369883171,1751759441196,-460.0,0.00019964,2]
[369883172,1751759441205,-460.0,0.00019964,2]
[369883174,1751759441214,-460.0,0.00019964,2]
[369883176,1751759441223,-190.32,0.00019964,2]
[369883178,1751759441233,-583.19,0.00019964,2]
[369883180,1751759441242,-296.92,0.00019964,2]
[369883182,1751759441251,-460.0,0.00019964,2]
[369883184,1751759441261,-460.0,0.00019964,2]
[369883186,1751759441270,-216.43,0.00019964,2]
[369883188,1751759441279,-513.03615365,0.00019964,2]
[369883190,1751759441289,-467.8,0.00019964,2]
[369883192,1751759441298,-460.0,0.00019964,2]
[369883194,1751759441307,-460.0,0.00019964,2]
[369883196,1751759441317,-497.81157093,0.00019964,2]
[369883198,1751759441326,-428.52,0.00019964,2]
[369883200,1751759441335,-165.78,0.00019964,2]
[369883202,1751759441344,-460.0,0.00019964,2]
[369883204,1751759441354,-523.35,0.00019964,2]
[369883206,1751759441363,-460.0,0.00019964,2]
[369883208,1751759441372,-460.0,0.00019964,2]
[369883210,1751759441381,-442.01822837,0.00019965,2]
[369883212,1751759441390,-414.42143726,0.00019984,2]
[369883214,1751759441401,-460.0,0.00019984,2]
[369883216,1751759441416,-250.0,0.00019984,2]
[369883218,1751759441425,-153.28,0.0001999,2]
[369883220,1751759441434,-153.28,0.0001999,2]
[369883222,1751759441448,-460.0,0.00019999,2]
[369883224,1751759441457,-460.0,0.00019999,2]
[369883226,1751759441466,-460.0,0.00019999,2]
[369883228,1751759441476,-232.49,0.00019999,2]
[369883230,1751759441485,-460.0,0.00019999,2]
[369883232,1751759441494,-547.46,0.00019999,2]
[369883234,1751759441504,-265.51,0.00019999,2]
[369883236,1751759441513,-539.4,0.00019999,2]
[369883238,1751759441522,-363.42,0.00019999,2]
[369883240,1751759441531,-460.0,0.00019999,2]
[369883241,1751759441540,-285.02,0.00019999,2]
[369883243,1751759441550,-377.93,0.00019999,2]
[369883245,1751759441559,-194.71,0.00019999,2]
[369883247,1751759441568,-153.08,0.00019999,2]
[369883249,1751759441578,-433.6487387,0.00019999,2]
[369883251,1751759441587,-460.0,0.00019999,2]
[369883253,1751759441597,-189.4,0.00019999,2]
[369883255,1751759441606,-460.0,0.00019999,2]
[369883257,1751759441615,-330.74,0.00019999,2]
[369883259,1751759441624,-460.0,0.00019999,2]
[369883260,1751759441633,-166.24,0.00019999,2]
[369883261,1751759441642,-598.33,0.00019999,2]
[369883262,1751759441651,-153.89,0.00019999,2]
[369883263,1751759441660,-377.99,0.00019999,2]
[369883264,1751759441669,-460.0,0.00019999,2]
[369883265,1751759441678,-460.0,0.00019999,2]
[369883266,1751759441687,-460.0,0.00019999,2]
[369883267,1751759441696,-345.88,0.00019999,2]
[369883268,1751759441704,-402.12,0.00019999,2]
[369883269,1751759441713,-460.0,0.00019999,2]
[369883270,1751759441722,-460.0,0.00019999,2]
[369883271,1751759441731,-460.0,0.00019999,2]
[369883272,1751759441740,-460.0,0.00019999,2]
[369883273,1751759441749,-460.0,0.00019999,2]
[369883274,1751759441758,-460.0,0.00019999,2]
[369883275,1751759441767,-209.94,0.00019999,2]
[369883276,1751759441776,-460.0,0.00019999,2]
[369883277,1751759441785,-460.0,0.00019999,2]
[369883278,1751759441794,-456.28268594,0.00019999,2]
[369883279,1751759441802,-460.0,0.00019999,2]
[369883280,1751759441811,-460.0,0.00019999,2]
[369883281,1751759441820,-460.0,0.00019999,2]
[369883283,1751759441830,-460.0,0.00019999,2]
[369883285,1751759441839,-310.82984757,0.00019999,2]
[369883289,1751759441873,-149.17015243,0.00019999,2]
[369883291,1751759441882,-460.0,0.00019999,2]
[369883293,1751759441891,-460.0,0.00019999,2]
[369883295,1751759441901,-595.83,0.00019999,2]
[369883297,1751759441910,-581.04,0.00019999,2]
[369883299,1751759441919,-388.01560577,0.00019999,2]
[369883644,1751759446400,-449.5557128,0.00018361,2]
[369883645,1751759446416,-714.4442872,0.00018361,2]
[369883646,1751759446428,-71.98439423,0.00019999,2]
[369883647,1751759446437,-460.0,0.00019999,2]
[369883648,1751759446448,-274.3319722,0.00019999,2]
[369883649,1751759446460,-185.6680278,0.00019999,2]
[369883650,1751759446470,-460.0,0.00019999,2]
[369883651,1751759446479,-78.3151212,0.00019999,2]
[369883652,1751759446491,-381.6848788,0.00019999,2]
[369883653,1751759446500,-495.27,0.00019999,2]
[369883654,1751759446509,-490.0,0.00019999,2]
[369883655,1751759446518,-460.0,0.00019999,2]
[369883656,1751759446527,-460.0,0.00019999,2]
[369883657,1751759446536,-556.72,0.00019999,2]
[369883658,1751759446547,-460.0,0.00019999,2]
[369883659,1751759446556,-129.43945249,0.00019999,2]
[369883660,1751759446568,-330.56054751,0.00019999,2]
[369883661,1751759446577,-77.74508895,0.00019999,2]
[369883662,1751759446592,-350.78491105,0.00019999,2]
[369883663,1751759446602,-460.0,0.00019999,2]
[369883664,1751759446611,-460.0,0.00019999,2]
[369883665,1751759446621,-558.08,0.00019999,2]
[369883666,1751759446630,-281.3854779,0.00019999,2]